[Event "ESP-ch U1700 2024"]
[Site "Albacete"]
[Date "2024.08.31"]
[Round "8.4"]
[White "Perez Fernandez, Alvaro"]
[Black "Airos Martorell, Ignacio"]
[Result "1-0"]
[ECO "A45"]
[WhiteElo "1638"]
[BlackElo "1650"]
[Annotator "NA RC COMBH"]
[PlyCount "104"]
[EventDate "2024.08.27"]
[EventType "swiss"]
[EventCountry "ESP"]
[SourceTitle "playchess.com"]
[Source "ChessBase"]
[SourceQuality "1"]
[TimeControl "5400+30"]

1. d4 {[%emt 0:00:22]} Nf6 {[%emt 0:00:03]} 2. Bf4 {[%emt 0:01:19]} e6 {[%emt 0:01:13]} 3. e3 {[%emt 0:01:30]} b6 {[%emt 0:01:42]} 4. Bd3 {[%emt 0:02:55]} Bb7 {[%emt 0:00:32]} 5. Nf3 {[%emt 0:00:20]} d5 {[%emt 0:02:11]} 6. O-O {[%emt 0:01:18]} Bd6 {[%emt 0:02:29]} 7. Ne5 {[%emt 0:01:55]} Bxe5 {[%emt 0:02:40]} 8. Bxe5 {[%emt 0:00:51]} Nbd7 {[%emt 0:00:18]} 9. Bf4 {[%emt 0:01:35]} O-O {[%emt 0:02:20]} 10. Qf3 {[%emt 0:04:37]} Re8 {[%emt 0:03:22]} 11. Qg3 {[%emt 0:11:41]} c6 {[%emt 0:03:10]} 12. Be5 {[%emt 0:04:53]} Nxe5 {[%emt 0:04:40]} 13. dxe5 {[%emt 0:00:21]} Nh5 {[%emt 0:00:23]} 14. Qh3 {[%emt 0:02:23]} g6 {[%emt 0:00:20]} 15. g4 {[%emt 0:03:39]} Ng7 {[%emt 0:01:32]} 16. f4 {[%emt 0:01:59]} c5 {[%emt 0:00:54]} 17. c3 {[%emt 0:06:11]} Qe7 {[%emt 0:04:54]} 18. Nd2 {[%emt 0:07:15]} a5 {[%emt 0:10:39]} 19. e4 {[%emt 0:05:47]} c4 {[%emt 0:12:59]} 20. Bc2 {[%emt 0:04:08]} Qc5+ {[%emt 0:00:50]} 21. Rf2 {[%emt 0:03:20]} d4 {[%emt 0:02:22]} 22. Re1 {[%emt 0:04:15]} d3 {[%emt 0:01:04]} 23. Bb1 {[%emt 0:01:10]} b5 {[%emt 0:02:50]} 24. Qg3 {[%emt 0:02:56]} h5 {[%emt 0:03:06]} 25. f5 {[%emt 0:03:44]} exf5 {[%emt 0:08:42]} 26. exf5 {[%emt 0:02:32]} gxf5 {[%emt 0:00:58]} 27. gxf5 {[%emt 0:03:40]} Kh8 {[%emt 0:00:52]} 28. Qf4 {[%emt 0:05:37]} Kh7 {[%emt 0:07:04]} 29. Ne4 {[%emt 0:05:48]} Bxe4 {[%emt 0:01:26]} 30. Qxe4 {[%emt 0:00:06]} Kh8 31. Kf1 {[%emt 0:03:34]} Rg8 {[%emt 0:04:17]} 32. Qh4 {[%emt 0:02:30]} Qc6 {[%emt 0:00:53]} 33. Re4 {[%emt 0:01:02]} Qh6 {[%emt 0:00:56]} 34. Rff4 {[%emt 0:01:00]} d2 {[%emt 0:01:03]} 35. Bc2 {[%emt 0:00:16]} Rad8 {[%emt 0:01:11]} 36. Bd1 {[%emt 0:00:06]} Qh7 {[%emt 0:01:06]} 37. Qg5 {[%emt 0:01:05]} Ne6 {[%emt 0:00:33]} 38. Qf6+ {[%emt 0:00:05]} Ng7 {[%emt 0:00:44]} 39. e6 {[%emt 0:00:34]} fxe6 {[%emt 0:01:00]} 40. fxe6 {[%emt 0:00:13]} Qxe4 {[%emt 0:01:34]} 41. Rxe4 {[%emt 0:00:17]} Rgf8 {[%emt 0:00:16]} 42. Qxf8+ Rxf8+ {[%emt 0:00:00]} 43. Ke2 {[%emt 0:00:24]} Re8 {[%emt 0:00:37]} 44. Kxd2 {[%emt 0:00:39]} Rxe6 {[%emt 0:00:26]} 45. Rxe6 {[%emt 0:00:12]} Nxe6 {[%emt 0:00:01]} 46. Bxh5 {[%emt 0:00:07]} Nf4 {[%emt 0:00:55]} 47. Bg4 {[%emt 0:00:14]} Nd3 {[%emt 0:00:15]} 48. b3 {[%emt 0:00:47]} cxb3 {[%emt 0:00:02]} 49. axb3 {[%emt 0:00:04]} Nc5 {[%emt 0:00:51]} 50. Kc2 {[%emt 0:00:55]} Kg7 {[%emt 0:00:36]} 51. b4 {[%emt 0:01:37]} axb4 52. cxb4 Na6 1-0

[Event "ESP-ch U1700 2024"]
[Site "Albacete"]
[Date "2024.08.31"]
[Round "8.5"]
[White "El Ammari Rovira, Sara"]
[Black "Garcia Sahuquillo, Marcos Antonio"]
[Result "1/2-1/2"]
[ECO "C01"]
[WhiteElo "1652"]
[BlackElo "1690"]
[Annotator "NA RC COMBH"]
[PlyCount "127"]
[EventDate "2024.08.27"]
[EventType "swiss"]
[EventCountry "ESP"]
[SourceTitle "playchess.com"]
[Source "ChessBase"]
[SourceQuality "1"]
[TimeControl "5400+30"]

1. e4 {[%emt 0:00:03]} e6 {[%emt 0:01:10]} 2. d4 {[%emt 0:00:09]} d5 {[%emt 0:00:19]} 3. exd5 {[%emt 0:00:12]} exd5 {[%emt 0:00:07]} 4. Nf3 {[%emt 0:00:10]} Nf6 {[%emt 0:00:07]} 5. Bd3 {[%emt 0:00:09]} Be7 {[%emt 0:00:42]} 6. h3 {[%emt 0:00:43]} c5 {[%emt 0:00:21]} 7. dxc5 {[%emt 0:00:58]} Bxc5 {[%emt 0:00:10]} 8. O-O {[%emt 0:00:34]} O-O {[%emt 0:00:14]} 9. Bg5 {[%emt 0:00:30]} Qb6 {[%emt 0:00:40]} 10. Bxf6 {[%emt 0:00:51]} Qxf6 {[%emt 0:00:13]} 11. Nc3 {[%emt 0:00:39]} Be6 {[%emt 0:00:47]} 12. a3 {[%emt 0:01:57]} Nc6 {[%emt 0:00:24]} 13. Rb1 {[%emt 0:05:19]} Nd4 {[%emt 0:00:52]} 14. Nxd4 {[%emt 0:02:04]} Bxd4 {[%emt 0:00:14]} 15. Na4 {[%emt 0:01:33]} a6 {[%emt 0:02:26]} 16. Nc3 {[%emt 0:09:49]} Bxc3 {[%emt 0:00:27]} 17. bxc3 {[%emt 0:00:06]} Qxc3 {[%emt 0:00:19]} 18. Rb3 {[%emt 0:02:19]} Qc7 {[%emt 0:02:20]} 19. Rb4 {[%emt 0:04:18]} g6 {[%emt 0:02:25]} 20. Qd2 {[%emt 0:02:02]} b5 {[%emt 0:04:06]} 21. Qh6 {[%emt 0:01:40]} Qe5 {[%emt 0:00:51]} 22. Rh4 {[%emt 0:03:25]} Qg7 {[%emt 0:00:08]} 23. Qg5 {[%emt 0:01:25]} f5 {[%emt 0:07:41]} 24. Re1 {[%emt 0:04:51]} Rae8 {[%emt 0:01:54]} 25. Rh6 {[%emt 0:15:34]} Qf6 {[%emt 0:00:49]} 26. Qf4 {[%emt 0:02:00]} Bd7 {[%emt 0:04:42]} 27. Rxe8 {[%emt 0:03:16]} Rxe8 {[%emt 0:00:15]} 28. g4 {[%emt 0:01:48]} Re1+ {[%emt 0:01:30]} 29. Kg2 {[%emt 0:00:25]} Bc6 {[%emt 0:03:29]} 30. gxf5 {[%emt 0:05:47]} Kg7 {[%emt 0:06:16]} 31. Rh4 {[%emt 0:04:00]} g5 {[%emt 0:04:07]} 32. Qg3 {[%emt 0:04:52]} d4+ {[%emt 0:01:05]} 33. f3 {[%emt 0:07:40]} Bxf3+ {[%emt 0:00:06]} 34. Kf2 {[%emt 0:06:55]} Re3 {[%emt 0:07:21]} 35. Qc7+ {[%emt 0:04:48]} Re7 {[%emt 0:00:07]} 36. Qg3 {[%emt 0:02:35]} h6 {[%emt 0:02:53]} 37. Rf4 {[%emt 0:00:49]} Bd5 {[%emt 0:02:22]} 38. h4 {[%emt 0:01:27]} Kf8 {[%emt 0:00:49]} 39. Rg4 {[%emt 0:00:45]} Re3 {[%emt 0:05:34]} 40. Qb8+ {[%emt 0:00:10]} Kg7 {[%emt 0:00:23]} 41. Qa7+ {[%emt 0:00:37]} Bf7 {[%emt 0:00:23]} 42. hxg5 {[%emt 0:00:50]} hxg5 {[%emt 0:00:12]} 43. Qxd4 {[%emt 0:00:33]} Qxd4 {[%emt 0:04:01]} 44. Rxd4 Re7 {[%emt 0:00:16]} 45. Rd6 {[%emt 0:00:08]} Ra7 {[%emt 0:00:29]} 46. f6+ {[%emt 0:00:33]} Kh6 {[%emt 0:01:53]} 47. Rd8 {[%emt 0:00:27]} g4 {[%emt 0:00:53]} 48. Kg3 {[%emt 0:00:39]} Kg5 {[%emt 0:00:27]} 49. Rd6 {[%emt 0:00:19]} Bg8 {[%emt 0:02:15]} 50. Be2 {[%emt 0:00:59]} Rc7 {[%emt 0:01:56]} 51. Bd3 {[%emt 0:00:32]} Bc4 {[%emt 0:07:11]} 52. Bxc4 {[%emt 0:00:34]} Rxc4 {[%emt 0:00:20]} 53. f7 {[%emt 0:00:18]} Rc3+ {[%emt 0:00:47]} 54. Rd3 {[%emt 0:00:28]} Rc8 {[%emt 0:00:33]} 55. Rd5+ {[%emt 0:00:15]} Kf6 {[%emt 0:00:19]} 56. Kxg4 {[%emt 0:00:02]} Kxf7 {[%emt 0:00:17]} 57. Rd6 {[%emt 0:00:30]} Rc4+ {[%emt 0:04:43]} 58. Kf5 {[%emt 0:00:32]} Rc5+ {[%emt 0:01:58]} 59. Ke4 {[%emt 0:00:09]} a5 {[%emt 0:00:26]} 60. Kd3 {[%emt 0:00:22]} Ke7 {[%emt 0:02:54]} 61. Ra6 {[%emt 0:01:06]} a4 {[%emt 0:00:08]} 62. Ra5 {[%emt 0:00:29]} Kd6 {[%emt 0:00:35]} 63. Ra6+ {[%emt 0:01:00]} Kd5 {[%emt 0:00:42]} 64. Ra8 {[%emt 0:00:22]} 1/2-1/2

[Event "ESP-ch U1700 2024"]
[Site "Albacete"]
[Date "2024.08.31"]
[Round "8.6"]
[White "Lopez Milian, Adela"]
[Black "Kaji Senas, Tarek"]
[Result "1-0"]
[ECO "A53"]
[WhiteElo "1681"]
[BlackElo "1654"]
[Annotator "NA RC COMBH"]
[PlyCount "63"]
[EventDate "2024.08.27"]
[EventType "swiss"]
[EventCountry "ESP"]
[SourceTitle "playchess.com"]
[Source "ChessBase"]
[SourceQuality "1"]
[TimeControl "5400+30"]

1. d4 {[%emt 0:00:02]} Nf6 {[%emt 0:00:12]} 2. c4 {[%emt 0:00:05]} d6 {[%emt 0:00:27]} 3. Nc3 {[%emt 0:00:14]} e5 {[%emt 0:00:34]} 4. e3 {[%emt 0:03:22]} Nbd7 {[%emt 0:01:11]} 5. Nf3 {[%emt 0:01:44]} g6 {[%emt 0:02:00]} 6. Be2 {[%emt 0:00:52]} Bg7 {[%emt 0:00:10]} 7. O-O {[%emt 0:00:08]} O-O {[%emt 0:00:05]} 8. Qc2 {[%emt 0:00:36]} Re8 {[%emt 0:01:00]} 9. d5 {[%emt 0:06:13]} a5 {[%emt 0:02:17]} 10. e4 {[%emt 0:05:30]} Nc5 {[%emt 0:03:14]} 11. Be3 {[%emt 0:00:44]} Na6 {[%emt 0:09:11]} 12. a3 {[%emt 0:00:35]} Ng4 {[%emt 0:03:24]} 13. Bd2 {[%emt 0:05:46]} Nc5 {[%emt 0:03:08]} 14. b4 axb4 {[%emt 0:00:46]} 15. axb4 {[%emt 0:01:32]} Rxa1 {[%emt 0:00:11]} 16. Rxa1 {[%emt 0:00:05]} Nd7 {[%emt 0:00:33]} 17. h3 {[%emt 0:00:50]} Ngf6 {[%emt 0:00:08]} 18. Nb5 {[%emt 0:03:53]} Nf8 {[%emt 0:03:07]} 19. c5 {[%emt 0:01:24]} Nxe4 {[%emt 0:08:35]} 20. Qxe4 {[%emt 0:03:38]} Bf5 {[%emt 0:00:02]} 21. Qe3 {[%emt 0:07:38]} e4 {[%emt 0:00:54]} 22. Nfd4 {[%emt 0:00:35]} dxc5 {[%emt 0:01:01]} 23. bxc5 {[%emt 0:00:57]} Qxd5 {[%emt 0:04:52]} 24. Rc1 {[%emt 0:01:54]} Rd8 {[%emt 0:04:00]} 25. Nxf5 {[%emt 0:05:56]} Qxd2 {[%emt 0:04:12]} 26. Qxd2 {[%emt 0:00:06]} Rxd2 {[%emt 0:00:08]} 27. Nxg7 {[%emt 0:01:10]} Rxe2 {[%emt 0:01:53]} 28. Ne8 {[%emt 0:00:14]} c6 {[%emt 0:06:36]} 29. Nbd6 {[%emt 0:00:18]} e3 {[%emt 0:00:29]} 30. fxe3 {[%emt 0:02:41]} Rxe3 {[%emt 0:00:06]} 31. Rb1 {[%emt 0:05:07]} Rc3 {[%emt 0:04:28]} 32. Rxb7 {[%emt 0:13:38]} 1-0

[Event "ESP-ch U1700 2024"]
[Site "Albacete"]
[Date "2024.08.31"]
[Round "8.7"]
[White "Molina Gomez, Juan Francisco"]
[Black "Cerdeno Gil, Izan"]
[Result "0-1"]
[ECO "A03"]
[WhiteElo "1677"]
[BlackElo "1637"]
[Annotator "NA RC COMBH"]
[PlyCount "166"]
[EventDate "2024.08.27"]
[EventType "swiss"]
[EventCountry "ESP"]
[SourceTitle "playchess.com"]
[Source "ChessBase"]
[SourceQuality "1"]
[TimeControl "5400+30"]

1. f4 {[%emt 0:00:20]} d5 {[%emt 0:00:20]} 2. Nf3 {[%emt 0:00:07]} Bf5 {[%emt 0:00:38]} 3. e3 {[%emt 0:02:17]} e6 {[%emt 0:02:09]} 4. Be2 {[%emt 0:03:02]} Be7 {[%emt 0:01:58]} 5. O-O {[%emt 0:00:24]} c5 {[%emt 0:00:57]} 6. d4 {[%emt 0:01:01]} Nd7 {[%emt 0:01:49]} 7. b3 {[%emt 0:04:16]} Bf6 {[%emt 0:03:03]} 8. Ne5 {[%emt 0:02:26]} Rc8 {[%emt 0:02:10]} 9. Bb5 {[%emt 0:01:23]} Bxe5 {[%emt 0:00:10]} 10. dxe5 {[%emt 0:03:58]} h5 {[%emt 0:03:10]} 11. Be2 {[%emt 0:07:35]} a6 {[%emt 0:05:30]} 12. c4 {[%emt 0:02:38]} Nb6 {[%emt 0:03:51]} 13. Nd2 {[%emt 0:10:58]} Nh6 {[%emt 0:06:11]} 14. h3 {[%emt 0:03:43]} h4 {[%emt 0:14:45]} 15. Bf3 {[%emt 0:02:43]} Bd3 {[%emt 0:02:41]} 16. Re1 {[%emt 0:03:51]} Nf5 {[%emt 0:04:49]} 17. Nf1 {[%emt 0:07:01]} Bxf1 {[%emt 0:00:38]} 18. Rxf1 {[%emt 0:06:22]} Rc7 {[%emt 0:01:57]} 19. cxd5 {[%emt 0:01:05]} Nxd5 {[%emt 0:03:20]} 20. Re1 {[%emt 0:02:34]} Rd7 {[%emt 0:03:55]} 21. Qc2 {[%emt 0:01:10]} Nb4 {[%emt 0:00:14]} 22. Qc3 {[%emt 0:05:29]} Qc7 {[%emt 0:04:04]} 23. Rd1 {[%emt 0:03:19]} Rxd1+ {[%emt 0:01:31]} 24. Bxd1 {[%emt 0:00:01]} Ng3 {[%emt 0:00:28]} 25. Bf3 {[%emt 0:01:27]} Nd5 {[%emt 0:00:28]} 26. Qe1 {[%emt 0:01:13]} Nb4 {[%emt 0:01:26]} 27. Qd2 {[%emt 0:01:40]} O-O {[%emt 0:00:21]} 28. a3 {[%emt 0:03:55]} Rd8 {[%emt 0:01:40]} 29. Qe1 {[%emt 0:02:17]} Nc2 {[%emt 0:00:13]} 30. Qc3 {[%emt 0:00:41]} Nxa1 {[%emt 0:00:09]} 31. Qxa1 {[%emt 0:00:10]} Qa5 {[%emt 0:00:25]} 32. Kf2 {[%emt 0:01:00]} Rd3 {[%emt 0:01:28]} 33. Qb1 {[%emt 0:01:21]} Qc3 {[%emt 0:00:24]} 34. b4 {[%emt 0:02:27]} cxb4 {[%emt 0:01:17]} 35. axb4 {[%emt 0:00:04]} Qb3 {[%emt 0:00:15]} 36. Qxb3 {[%emt 0:01:59]} Rxb3 {[%emt 0:00:56]} 37. Bxb7 {[%emt 0:00:17]} a5 {[%emt 0:00:43]} 38. Kf3 {[%emt 0:04:33]} Rxb4 {[%emt 0:01:28]} 39. Ba6 {[%emt 0:00:31]} Rb1 {[%emt 0:00:59]} 40. Ba3 {[%emt 0:00:35]} g6 {[%emt 0:00:34]} 41. Bc4 {[%emt 0:00:25]} Ra1 {[%emt 0:01:39]} 42. Bb2 {[%emt 0:00:30]} Ra4 {[%emt 0:00:08]} 43. Bd3 {[%emt 0:00:34]} Rb4 {[%emt 0:01:02]} 44. Bc1 {[%emt 0:00:27]} Rb8 {[%emt 0:00:45]} 45. Ba6 {[%emt 0:01:00]} a4 {[%emt 0:00:44]} 46. Bd3 {[%emt 0:01:14]} a3 {[%emt 0:00:20]} 47. Bxa3 {[%emt 0:01:49]} Rb3 {[%emt 0:00:28]} 48. Be7 {[%emt 0:00:07]} Rxd3 {[%emt 0:00:14]} 49. Bxh4 {[%emt 0:00:08]} Rxe3+ {[%emt 0:00:27]} 50. Kxe3 {[%emt 0:00:23]} Nf5+ {[%emt 0:00:09]} 51. Kf2 {[%emt 0:00:57]} Nxh4 {[%emt 0:00:08]} 52. g4 {[%emt 0:00:22]} g5 {[%emt 0:00:16]} 53. Kg3 {[%emt 0:00:23]} Ng6 {[%emt 0:00:15]} 54. fxg5 {[%emt 0:00:48]} Nxe5 {[%emt 0:00:12]} 55. h4 {[%emt 0:00:29]} Kg7 {[%emt 0:00:46]} 56. h5 {[%emt 0:00:09]} Nd3 {[%emt 0:01:18]} 57. Kf3 {[%emt 0:00:29]} Nc5 {[%emt 0:02:09]} 58. Kf4 {[%emt 0:00:11]} Nd7 {[%emt 0:00:32]} 59. Ke4 {[%emt 0:01:14]} f6 {[%emt 0:00:58]} 60. gxf6+ {[%emt 0:00:39]} Kxf6 {[%emt 0:00:02]} 61. Kf4 {[%emt 0:02:10]} e5+ {[%emt 0:00:42]} 62. Kg3 {[%emt 0:00:59]} Kg5 {[%emt 0:00:31]} 63. Kf3 {[%emt 0:00:01]} Nf6 {[%emt 0:00:20]} 64. h6 {[%emt 0:01:08]} Kxh6 {[%emt 0:00:13]} 65. g5+ {[%emt 0:00:17]} Kxg5 {[%emt 0:00:10]} 66. Ke3 {[%emt 0:00:12]} Kf5 {[%emt 0:00:11]} 67. Kf3 {[%emt 0:00:07]} e4+ {[%emt 0:00:11]} 68. Ke3 {[%emt 0:00:04]} Nd5+ {[%emt 0:00:10]} 69. Ke2 {[%emt 0:00:21]} Kf4 {[%emt 0:00:07]} 70. Kf2 {[%emt 0:00:10]} e3+ {[%emt 0:00:08]} 71. Ke2 {[%emt 0:00:03]} Ke4 {[%emt 0:00:10]} 72. Kd1 {[%emt 0:00:18]} Kf3 {[%emt 0:00:25]} 73. Kc2 {[%emt 0:00:49]} e2 {[%emt 0:00:12]} 74. Kd2 {[%emt 0:00:11]} Kf2 {[%emt 0:00:12]} 75. Kd3 {[%emt 0:00:10]} e1=Q {[%emt 0:00:21]} 76. Kd4 {[%emt 0:00:08]} Nf6 {[%emt 0:00:24]} 77. Kd3 {[%emt 0:00:13]} Qe4+ {[%emt 0:00:11]} 78. Kd2 {[%emt 0:00:12]} Qd4+ {[%emt 0:00:02]} 79. Kc2 {[%emt 0:00:15]} Ke2 {[%emt 0:00:17]} 80. Kb3 {[%emt 0:00:12]} Qc5 {[%emt 0:01:15]} 81. Kb2 {[%emt 0:00:11]} Kd3 {[%emt 0:00:19]} 82. Kb3 {[%emt 0:00:17]} Qb5+ {[%emt 0:00:01]} 83. Ka2 {[%emt 0:00:20]} Kc2 {[%emt 0:00:01]} 0-1

[Event "ESP-ch U1700 2024"]
[Site "Albacete"]
[Date "2024.08.31"]
[Round "8.8"]
[White "Trujillo Torres, Alvaro"]
[Black "Solanilla Olcese, Ada"]
[Result "0-1"]
[ECO "B13"]
[WhiteElo "1595"]
[BlackElo "1668"]
[Annotator "NA RC COMBH"]
[PlyCount "82"]
[EventDate "2024.08.27"]
[EventType "swiss"]
[EventCountry "ESP"]
[SourceTitle "playchess.com"]
[Source "ChessBase"]
[SourceQuality "1"]
[TimeControl "5400+30"]

1. e4 {[%emt 0:00:03]} c6 {[%emt 0:00:07]} 2. d4 {[%emt 0:00:06]} d5 {[%emt 0:00:22]} 3. exd5 {[%emt 0:00:16]} cxd5 {[%emt 0:00:07]} 4. Bd3 {[%emt 0:00:12]} Nf6 {[%emt 0:00:56]} 5. c3 {[%emt 0:00:40]} e6 {[%emt 0:01:04]} 6. Bf4 {[%emt 0:01:11]} Bd6 {[%emt 0:01:19]} 7. Bxd6 {[%emt 0:01:27]} Qxd6 {[%emt 0:00:11]} 8. Nd2 {[%emt 0:01:10]} Nc6 {[%emt 0:02:02]} 9. Ngf3 {[%emt 0:00:31]} Bd7 {[%emt 0:03:40]} 10. O-O {[%emt 0:01:13]} O-O {[%emt 0:01:48]} 11. Re1 {[%emt 0:02:47]} a6 {[%emt 0:02:48]} 12. Ne5 {[%emt 0:01:29]} b5 {[%emt 0:02:29]} 13. Qe2 {[%emt 0:09:00]} Bc8 {[%emt 0:06:23]} 14. Ndf3 {[%emt 0:25:36]} Na5 {[%emt 0:22:25]} 15. b3 {[%emt 0:05:18]} h6 {[%emt 0:12:49]} 16. Qc2 {[%emt 0:21:35]} Bb7 {[%emt 0:10:41]} 17. a4 {[%emt 0:03:45]} b4 {[%emt 0:02:37]} 18. Rac1 {[%emt 0:06:33]} bxc3 {[%emt 0:04:23]} 19. Qxc3 {[%emt 0:00:20]} Qb6 {[%emt 0:03:07]} 20. b4 {[%emt 0:03:26]} Nc4 {[%emt 0:01:44]} 21. Nxc4 {[%emt 0:02:17]} dxc4 {[%emt 0:00:34]} 22. Bxc4 {[%emt 0:00:59]} Bxf3 {[%emt 0:00:34]} 23. gxf3 {[%emt 0:03:18]} Rfc8 {[%emt 0:01:07]} 24. Qb2 {[%emt 0:02:02]} Qb7 {[%emt 0:03:24]} 25. Re3 {[%emt 0:02:14]} Nd5 {[%emt 0:01:21]} 26. Bxd5 {[%emt 0:00:53]} Qxd5 {[%emt 0:00:14]} 27. Rec3 {[%emt 0:00:31]} Rxc3 {[%emt 0:02:04]} 28. Rxc3 {[%emt 0:01:03]} Rd8 {[%emt 0:01:19]} 29. Rd3 {[%emt 0:01:00]} Rc8 {[%emt 0:00:48]} 30. Rc3 {[%emt 0:01:23]} Rd8 {[%emt 0:00:54]} 31. Rd3 {[%emt 0:00:11]} e5 {[%emt 0:01:09]} 32. Qc3 {[%emt 0:01:22]} exd4 {[%emt 0:01:36]} 33. Qc5 {[%emt 0:00:29]} Qa2 {[%emt 0:01:19]} 34. Kg2 {[%emt 0:01:40]} Rd5 {[%emt 0:05:51]} 35. Qc6 {[%emt 0:01:04]} Rg5+ {[%emt 0:00:35]} 36. Kf1 {[%emt 0:00:51]} Qb1+ {[%emt 0:01:05]} 37. Ke2 {[%emt 0:00:03]} Re5+ {[%emt 0:00:45]} 38. Kd2 {[%emt 0:00:24]} Qxb4+ {[%emt 0:00:45]} 39. Kd1 {[%emt 0:00:24]} Re1+ {[%emt 0:00:17]} 40. Kc2 {[%emt 0:00:12]} Qb1+ {[%emt 0:00:14]} 41. Kd2 {[%emt 0:00:16]} Qd1# {[%emt 0:00:08]} 0-1

[Event "ESP-ch U1700 2024"]
[Site "Albacete"]
[Date "2024.08.31"]
[Round "8.9"]
[White "Varela Cano, Hugo"]
[Black "Pico Blanquer, Esteve"]
[Result "1-0"]
[ECO "B12"]
[WhiteElo "1691"]
[BlackElo "1646"]
[Annotator "NA RC COMBH"]
[PlyCount "72"]
[EventDate "2024.08.27"]
[EventType "swiss"]
[EventCountry "ESP"]
[SourceTitle "playchess.com"]
[Source "ChessBase"]
[SourceQuality "1"]
[TimeControl "5400+30"]

1. e4 {[%emt 0:00:10]} c6 {[%emt 0:02:18]} 2. d4 {[%emt 0:00:11]} d5 {[%emt 0:00:05]} 3. e5 {[%emt 0:00:46]} c5 {[%emt 0:00:11]} 4. dxc5 {[%emt 0:01:06]} e6 {[%emt 0:00:30]} 5. a3 Bxc5 {[%emt 0:00:10]} 6. b4 {[%emt 0:00:55]} Be7 {[%emt 0:00:13]} 7. Nf3 {[%emt 0:02:06]} a5 {[%emt 0:01:14]} 8. b5 Nd7 {[%emt 0:00:56]} 9. Be2 {[%emt 0:11:06]} f6 {[%emt 0:01:47]} 10. Bb2 {[%emt 0:06:36]} Nh6 {[%emt 0:00:40]} 11. c4 {[%emt 0:13:17]} Nb6 {[%emt 0:23:36]} 12. cxd5 {[%emt 0:04:38]} Nxd5 {[%emt 0:02:25]} 13. O-O {[%emt 0:06:46]} O-O {[%emt 0:04:41]} 14. Nbd2 {[%emt 0:03:26]} f5 {[%emt 0:06:47]} 15. Rc1 {[%emt 0:06:36]} Nf7 {[%emt 0:06:30]} 16. Nb3 {[%emt 0:07:55]} g5 {[%emt 0:02:56]} 17. Bc4 {[%emt 0:13:35]} g4 {[%emt 0:04:55]} 18. Nfd2 {[%emt 0:02:52]} h5 {[%emt 0:04:43]} 19. Nb1 {[%emt 0:01:35]} a4 {[%emt 0:09:32]} 20. Nd4 {[%emt 0:01:21]} Nxe5 {[%emt 0:04:12]} 21. Nxe6 {[%emt 0:00:37]} Bxe6 {[%emt 0:00:35]} 22. Bxe5 {[%emt 0:00:15]} Rc8 {[%emt 0:02:35]} 23. Qxa4 {[%emt 0:03:11]} Bf6 {[%emt 0:02:55]} 24. Bxd5 {[%emt 0:02:45]} Bxd5 {[%emt 0:02:41]} 25. Rxc8 {[%emt 0:01:25]} Qxc8 {[%emt 0:00:24]} 26. Qd4 {[%emt 0:01:00]} Bxe5 {[%emt 0:01:15]} 27. Qxd5+ {[%emt 0:00:14]} Kh7 {[%emt 0:01:55]} 28. Qxe5 {[%emt 0:00:12]} h4 {[%emt 0:01:23]} 29. Nc3 {[%emt 0:00:50]} Re8 {[%emt 0:02:55]} 30. Qf6 {[%emt 0:01:15]} h3 {[%emt 0:01:07]} 31. Rd1 {[%emt 0:02:26]} Qc7 {[%emt 0:05:35]} 32. Qxf5+ {[%emt 0:01:02]} Kh6 {[%emt 0:01:11]} 33. Ne4 {[%emt 0:01:16]} Qe7 {[%emt 0:01:25]} 34. Qf4+ {[%emt 0:02:05]} Kg6 {[%emt 0:02:10]} 35. Rd6+ {[%emt 0:01:18]} Kg7 36. Nc5 Qe6 1-0

[Event "ESP-ch U1700 2024"]
[Site "Albacete"]
[Date "2024.09.01"]
[Round "9.1"]
[White "Saiz Alonso de Armino, Daniel"]
[Black "El Ammari Rovira, Yassin Jesus"]
[Result "0-1"]
[ECO "D02"]
[WhiteElo "1689"]
[BlackElo "1582"]
[Annotator "NA RC COMBH"]
[PlyCount "108"]
[EventDate "2024.08.27"]
[EventType "swiss"]
[EventCountry "ESP"]
[SourceTitle "playchess.com"]
[Source "ChessBase"]
[SourceQuality "1"]
[TimeControl "5400+30"]

1. d4 d5 2. Nf3 Nf6 3. Bf4 e6 4. e3 Bd6 5. Bg3 b6 6. c3 O-O 7. Nbd2 c5 8. Bd3 Ba6 9. Bxa6 Nxa6 10. O-O Bxg3 11. hxg3 cxd4 12. exd4 Nb8 13. Ne5 Nbd7 14. Ndf3 Qc7 15. Re1 Ne4 16. Rc1 Nd6 17. Qa4 Nxe5 18. Nxe5 Rfc8 19. Re2 Nc4 20. Nxc4 Qxc4 21. Qxc4 Rxc4 22. Rec2 Rac8 23. b3 R4c7 24. c4 dxc4 25. Rxc4 Rxc4 26. bxc4 Kf8 27. Kf1 Ke7 28. Ke2 Kd6 29. Kd3 b5 30. c5+ Kd5 31. Rh1 h6 32. Rh5+ Kc6 33. g4 Rd8 34. f4 Rd5 35. g5 hxg5 36. Rxg5 Rxg5 37. fxg5 a5 38. a3 Kd5 39. g4 e5 40. dxe5 Kxe5 41. a4 Kd5 42. axb5 Kxc5 43. b6 Kxb6 44. Kc4 Kc6 45. Kb3 Kd5 46. Ka4 Ke4 47. Kxa5 Kf4 48. g6 fxg6 49. Kb4 Kxg4 50. Kc4 Kf3 51. Kd3 g5 52. Kd2 g4 53. Ke1 Kg2 54. Ke2 Kh2 0-1